{"text_format":"1","workbook":"xlsx","n_sheets":3,"sheets":["Реестр","Основные параметры","ШАБЛОН"],"not_rendered":{"charts":0,"images":0,"macros":1,"external_links":0,"defined_names":0,"comments":0,"pivot_tables":0},"unopened":[],"bounds":{"document_bytes":16777216,"sheet_cells":100000,"rows_first":2000,"rows_last":500,"rows_between":2000,"halvings":0,"cell_chars":16384,"cell_head_chars":4096},"cells_cut":0,"cells_raw":0,"read":"whole","date_system":"1900"}

{"sheet":"Реестр","index":0,"n_rows":2,"n_cols":2,"rows_kept":2,"cut":false,"hidden":false,"merged":[]}
[]
["АКТ освидетельствования скрытых работ  № 193/02/14-3-12-01 Ремонт лакокрасочного покрытия  опорных тарелок лопаток направляющего аппарата ГА-10 на первый слой.","2014-12-02"]

{"sheet":"Основные параметры","index":1,"n_rows":219,"n_cols":10,"rows_kept":219,"cut":false,"hidden":false,"merged":[[5,0,5,6],[6,0,6,9],[0,7,0,8],[1,7,1,8],[2,7,2,8],[4,7,4,8],[3,7,3,8],[5,7,5,8],[0,0,0,6],[1,0,1,6],[2,0,2,6],[3,0,3,6],[4,0,4,6],[19,0,19,6],[7,0,7,6],[27,0,27,6],[8,0,8,6],[18,0,18,6],[25,0,25,6],[26,0,26,6],[9,0,9,6],[10,0,10,6],[11,0,11,6],[12,0,12,6],[13,0,13,6],[14,0,14,6],[15,0,15,6],[16,0,16,6],[17,0,17,6],[20,0,20,6],[21,0,21,6],[22,0,22,6],[23,0,23,6],[24,0,24,6]]}
["Представитель застройщика или заказчика (Фамилия. И.О.)",null,null,null,null,null,null,"Реквизиты документа",null,"Должность"]
["Яга Б.А. ",null,null,null,null,null,null,null,null,"Сворливая старуха КВВНУ"]
["Представитель лица осуществляющего строительство (Фамилия. И.О.)",null,null,null,null,null,null,"Реквизиты документа",null,"Должность"]
["Кащей Б.Е.",null,null,null,null,null,null,null,null,"Главный Хранитель яйца"]
["Представитель лица осуществляющего строительство, выполневшее работы (Фамилия. И.О.)",null,null,null,null,null,null,"Реквизиты документа",null,"Должность"]
["Решетов А.В.",null,null,null,null,null,null,null,null,"Работяга бедолага"]
["Основные сведения о предъявляемых работах"]
["Объект капиталного строительства",null,null,null,null,null,null,"№ договора, заявки","Дата заключения","Информация о проектной документации"]
["666828, Неизвестная Сказочная обл., г. Просто чтобы удлиннить название, ул. Опушка леса у Чёрта на Рогах, ЖПРС Избушка на курьих ножках",null,null,null,null,null,null,"011/02/БЯ-89П","2015-04-17","Элюстрации к р/н сказкам"]
[]
[]
[]
[]
[]
[]
[]
[]
[]
[]
[]
[]
[]
[]
[]
[]
[]
[]
[]
["№ п/п","№ акта","Дата составления акта","Предъявляемая работа","Следующая работа","Примененные материалы","Приложения","Дата начала работ","Дата окончания работ","Информация о проектной документации"]
[1,{"$f":"IF(ISBLANK(D30),\" \",CONCATENATE($H$9,\"-\",A30))","v":"011/02/БЯ-89П-1"},{"$f":"IF(ISBLANK(I30),\" \",I30)","v":"2016-09-06"},"Обработка антисептическим составом \"Негнеин\" на первый слой","Обработка антисептическим составом \"Негнеин\" на второй слой","Пропитка антисептическая \"Негнеин\"","Сертификат соответствия № \"Филькина грамота\"","2016-09-01","2016-09-06","на глазок"]
[2,{"$f":"IF(ISBLANK(D31),\" \",CONCATENATE($H$9,\"-\",A31))","v":"011/02/БЯ-89П-2"},{"$f":"IF(ISBLANK(I31),\" \",I31)","v":"2016-09-08"},"Затыкивание щелей мхом.",null,"Мох с южной стороны деревьев","Сертификат соответствия № \"Сам наваял\", Филькина грамота 2","2016-09-07","2016-09-08","пихал пока лезло"]
[3," "," "]
[4," "," "]
[5," "," "]
[6," "," "]
[7," "," "]
[8," "," "]
[9," "," "]
[10," "," "]
[11," "," "]
[12," "," "]
[13," "," "]
[14," "," "]
[15," "," "]
[16," "," "]
[17," "," "]
[18," "," "]
[19," "," "]
[20," "," "]
[21," "," "]
[22," "," "]
[23," "," "]
[24," "," "]
[25," "," "]
[26," "," "]
[27," "," "]
[28," "," "]
[29," "," "]
[30," "," "]
[31," "," "]
[32," "," "]
[33," "," "]
[34," "," "]
[35," "," "]
[36," "," "]
[37," "," "]
[38," "," "]
[39," "," "]
[40," "," "]
[41," "," "]
[42," "," "]
[43," "," "]
[44," "," "]
[45," "," "]
[46," "," "]
[47," "," "]
[48," "," "]
[49," "," "]
[50," "," "]
[51," "," "]
[52," "," "]
[53," "," "]
[54," "," "]
[55," "," "]
[56," "," "]
[57," "," "]
[58," "," "]
[59," "," "]
[60," "," "]
[61," "," "]
[62," "," "]
[63," "," "]
[64," "," "]
[65," "," "]
[66,{"$f":"IF(ISBLANK(D95),\" \",CONCATENATE($H$9,\"-\",A95))","v":" "},{"$f":"IF(ISBLANK(I95),\" \",I95)","v":" "}]
[67," "," "]
[68," "," "]
[69," "," "]
[70," "," "]
[71," "," "]
[72," "," "]
[73," "," "]
[74," "," "]
[75," "," "]
[76," "," "]
[77," "," "]
[78," "," "]
[79," "," "]
[80," "," "]
[81," "," "]
[82," "," "]
[83," "," "]
[84," "," "]
[85," "," "]
[86," "," "]
[87," "," "]
[88," "," "]
[89," "," "]
[90," "," "]
[91," "," "]
[92," "," "]
[93," "," "]
[94," "," "]
[95," "," "]
[96," "," "]
[97," "," "]
[98," "," "]
[99," "," "]
[100," "," "]
[101," "," "]
[102," "," "]
[103," "," "]
[104," "," "]
[105," "," "]
[106," "," "]
[107," "," "]
[108," "," "]
[109," "," "]
[110," "," "]
[111," "," "]
[112," "," "]
[113," "," "]
[114," "," "]
[115," "," "]
[116," "," "]
[117," "," "]
[118," "," "]
[119," "," "]
[120," "," "]
[121," "," "]
[122," "," "]
[123," "," "]
[124," "," "]
[125," "," "]
[126," "," "]
[127," "," "]
[128," "," "]
[129," "," "]
[130,{"$f":"IF(ISBLANK(D159),\" \",CONCATENATE($H$9,\"-\",A159))","v":" "},{"$f":"IF(ISBLANK(I159),\" \",I159)","v":" "}]
[131," "," "]
[132," "," "]
[133," "," "]
[134," "," "]
[135," "," "]
[136," "," "]
[137," "," "]
[138," "," "]
[139," "," "]
[140," "," "]
[141," "," "]
[142," "," "]
[143," "," "]
[144," "," "]
[145," "," "]
[146," "," "]
[147," "," "]
[148," "," "]
[149," "," "]
[150," "," "]
[151," "," "]
[152," "," "]
[153," "," "]
[154," "," "]
[155," "," "]
[156," "," "]
[157," "," "]
[158," "," "]
[159," "," "]
[160," "," "]
[161," "," "]
[162," "," "]
[163," "," "]
[164," "," "]
[165," "," "]
[166," "," "]
[167," "," "]
[168," "," "]
[169," "," "]
[170," "," "]
[171," "," "]
[172," "," "]
[173," "," "]
[174," "," "]
[175," "," "]
[176," "," "]
[177," "," "]
[178," "," "]
[179," "," "]
[180," "," "]
[181," "," "]
[182," "," "]
[183," "," "]
[184," "," "]
[185," "," "]
[186," "," "]
[187," "," "]
[188," "," "]
[189," "," "]
[190," "," "]

{"sheet":"ШАБЛОН","index":2,"n_rows":147,"n_cols":30,"rows_kept":147,"cut":false,"hidden":false,"merged":[[13,0,13,11],[13,12,13,29],[14,0,14,29],[15,0,15,29],[16,0,16,29],[17,0,17,8],[17,9,17,29],[24,0,24,29],[25,0,25,29],[26,0,26,29],[27,0,27,29],[28,0,28,29],[29,0,29,29],[18,0,18,29],[19,0,19,29],[20,0,20,29],[21,0,21,29],[22,0,22,29],[23,0,23,12],[23,13,23,29],[35,0,35,29],[36,0,36,29],[37,0,37,29],[38,0,38,29],[39,0,39,7],[39,8,39,29],[30,0,30,29],[31,0,31,19],[31,20,31,29],[32,0,32,29],[33,0,33,29],[34,0,34,29],[46,0,46,29],[47,0,47,29],[48,0,48,29],[49,0,49,29],[50,1,50,6],[50,23,50,26],[50,28,50,29],[40,0,40,29],[41,0,41,29],[42,0,42,29],[43,0,43,29],[44,0,44,29],[45,0,45,29],[55,0,55,19],[55,20,55,29],[56,0,56,17],[56,18,56,29],[57,0,57,29],[58,0,58,29],[51,0,51,29],[52,0,52,13],[52,14,52,29],[53,0,53,29],[54,0,54,29],[64,0,64,24],[64,25,64,29],[65,0,65,29],[66,0,66,29],[67,0,67,29],[68,0,68,8],[68,9,68,29],[59,0,59,29],[60,0,60,29],[61,0,61,3],[61,4,61,29],[62,0,62,29],[63,0,63,29],[74,0,74,29],[75,0,75,29],[76,0,76,12],[76,13,76,29],[77,0,77,29],[78,0,78,29],[69,0,69,29],[70,0,70,29],[71,0,71,22],[71,23,71,29],[72,0,72,29],[73,0,73,29],[84,0,84,16],[84,17,84,29],[85,0,85,29],[86,0,86,29],[87,0,87,29],[88,0,88,29],[79,0,79,29],[80,0,80,18],[80,19,80,29],[81,0,81,29],[82,0,82,29],[83,0,83,29],[94,0,94,29],[95,0,95,4],[95,5,95,29],[96,0,96,29],[97,0,97,29],[98,0,98,29],[89,0,89,12],[89,13,89,29],[90,0,90,29],[91,0,91,29],[92,0,92,29],[93,0,93,29],[102,0,102,29],[103,0,103,14],[103,15,103,29],[104,0,104,29],[105,0,105,29],[106,0,106,29],[99,0,99,29],[100,0,100,7],[100,13,100,16],[100,18,100,20],[101,0,101,7],[101,13,101,16],[101,18,101,20],[112,0,112,29],[113,0,113,8],[113,9,113,29],[114,0,114,29],[115,0,115,5],[115,6,115,9],[115,10,115,29],[107,0,107,29],[108,0,108,29],[109,0,109,15],[109,16,109,29],[110,0,110,29],[111,0,111,29],[121,0,121,13],[121,14,121,29],[122,0,122,29],[123,0,123,29],[124,0,124,17],[124,18,124,29],[116,0,116,29],[117,0,117,4],[117,5,117,29],[118,0,118,29],[119,0,119,29],[120,0,120,29],[131,0,131,24],[131,25,131,29],[132,0,132,29],[133,0,133,29],[134,0,134,29],[135,0,135,8],[135,9,135,29],[125,0,125,29],[126,0,126,29],[127,0,127,29],[128,0,128,29],[129,0,129,29],[130,0,130,29],[141,0,141,29],[142,0,142,29],[143,0,143,29],[144,0,144,29],[145,0,145,29],[146,0,146,29],[136,0,136,29],[137,0,137,29],[138,0,138,8],[138,9,138,29],[139,0,140,8],[139,9,139,29],[140,9,140,29]]}
[]
[null,null,null,null,null,null,null,null,null,null,null,null,null,null,null,null,null,null,null,null,null,null,null,null,null,null,null,null,null," ПРИЛОЖЕНИЕ № 3"]
[null,null,null,null,null,null,null,null,null,null,null,null,null,null,null,null,null,null,null,null,null,null,null,null,null,null,null,null,null,"к Требованиям к составу и порядку ведения исполнительной "]
[null,null,null,null,null,null,null,null,null,null,null,null,null,null,null,null,null,null,null,null,null,null,null,null,null,null,null,null,null,"документации при строительстве, реконструкции, "]
[null,null,null,null,null,null,null,null,null,null,null,null,null,null,null,null,null,null,null,null,null,null,null,null,null,null,null,null,null,"капитальном ремонте объектов капитального строительства "]
[null,null,null,null,null,null,null,null,null,null,null,null,null,null,null,null,null,null,null,null,null,null,null,null,null,null,null,null,null,"и требования, предъявляемые к актам освидетельствования "]
[null,null,null,null,null,null,null,null,null,null,null,null,null,null,null,null,null,null,null,null,null,null,null,null,null,null,null,null,null,"работ, конструкций, участков сетей инженерно-"]
[null,null,null,null,null,null,null,null,null,null,null,null,null,null,null,null,null,null,null,null,null,null,null,null,null,null,null,null,null,"технического обеспечения, утвержденным "]
[null,null,null,null,null,null,null,null,null,null,null,null,null,null,null,null,null,null,null,null,null,null,null,null,null,null,null,null,null,"приказом Федеральной службы по экологическому, "]
[null,null,null,null,null,null,null,null,null,null,null,null,null,null,null,null,null,null,null,null,null,null,null,null,null,null,null,null,null,"технологическому и атомному надзору "]
[null,null,null,null,null,null,null,null,null,null,null,null,null,null,null,null,null,null,null,null,null,null,null,null,null,null,null,null,null,"от  26 декабря 2006 г. № 1128 "]
[]
[]
["Объект капитального строительства",null,null,null,null,null,null,null,null,null,null,null,"Филиал ПАО «Иркутскэнерго» Братская ГЭС."]
[]
[]
["(наименование, почтовый или строительный адрес объекта капитального строительства)"]
["Застройщик или заказчик",null,null,null,null,null,null,null,null,"Иркутское ПАО энергетики и электрификации "]
["                                                                                    (наименование, номер и дата выдачи свидетельства "]
["(ПАО «Иркутскэнерго») 664025, РФ, Иркутская обл.,  г. Иркутск, ул. Сухэ-Батора, 3"]
["о государственной регистрации, ОГРН, ИНН, почтовые реквизиты, телефон/факс – для  юридических лиц"]
["ИНН – 3800000220, КПП 997450001"]
["фамилия, имя, отчество, паспортные данные, место проживания, телефон/факс – для физических лиц)"]
["Лицо, осуществляющее строительство",null,null,null,null,null,null,null,null,null,null,null,null,"ЗАО «ГидроЭнергоСервис-ремонт», св-во о гос. "]
["                                                                                      (наименование, номер и дата выдачи свидетельства"]
["регистрации № 38 001011698 от 12.01.2004г. ИНН 3805700603, ОГРН 1043800916147. 665709, "]
["о государственной регистрации, ОГРН, ИНН, почтовые реквизиты, телефон/факс – для  юридических лиц;"]
["РоссийскаяФедерация,  Иркутская область, Братский район, г. Братск, п. Энергетик, "]
["фамилия, имя, отчество, паспортные данные, место проживания, телефон/факс – для физических лиц)"]
["тел.(3953) 323159, факс (3953) 323155. "]
[]
["Лицо, осуществляющее подготовку проектной документации",null,null,null,null,null,null,null,null,null,null,null,null,null,null,null,null,null,null,null,"нет"]
[]
["(наименование, номер и дата выдачи свидетельства "]
[]
["о государственной регистрации, ОГРН, ИНН, почтовые реквизиты, телефон/факс – для  юридических лиц;"]
[]
["фамилия, имя, отчество, паспортные данные, место проживания, телефон/факс – для физических лиц)"]
["Лицо, осуществляющее строительство, выполнившее работы, подлежащие"]
["освидетельствованию",null,null,null,null,null,null,null,"ЗАО «ГидроЭнергоСервис-ремонт», св-во о гос. регистрации № 38 "]
["                                                                         (наименование, номер и дата выдачи свидетельства"]
["001011698 от 12.01.2004г. ИНН 3805700603, ОГРН 1043800916147. 665709, Российская "]
["о государственной регистрации, ОГРН, ИНН, почтовые реквизиты, телефон/факс – для  юридических лиц; "]
["Федерация,  Иркутская область, Братский район, г. Братск, п. Энергетик, а/я 759. "]
["фамилия, имя, отчество, паспортные данные, место проживания, телефон/факс – для физических лиц)"]
["тел.(3953) 323159, факс (3953) 323155. "]
[]
["АКТ"]
["освидетельствования скрытых работ "]
[]
["№",null,null,null,null,null,null,null,null,null,null,null,null,null,null,null,null,null,null,"«",{"$f":"K102","v":0},"»   ",null,{"$f":"N102","v":0},null,null,null,null,{"$f":"S102","v":0}]
[]
["Представитель застройщика или заказчика"]
[{"$f":"MID(CONCATENATE('Основные параметры'!J2,\" - \",'Основные параметры'!A2),SEARCH(\" \",CONCATENATE('Основные параметры'!J2,\" - \",'Основные параметры'!A2),30+1),85)","v":" "}]
["(должность, фамилия, инициалы, реквизиты документа о представительстве)"]
[]
["Представитель лица, осуществляющего строительство"]
[]
[]
["(должность, фамилия, инициалы, реквизиты документа о представительстве)"]
["Представитель лица, осуществляющего строительство, по вопросам строительного"]
["контроля",null,null,null,"нет"]
[]
["(должность, фамилия, инициалы, реквизиты документа о представительстве)"]
["Представитель лица, осуществляющего подготовку проектной документации",null,null,null,null,null,null,null,null,null,null,null,null,null,null,null,null,null,null,null,null,null,null,null,null,"нет"]
[]
["(должность, фамилия, инициалы, реквизиты документа о представительстве)"]
["Представитель лица, осуществляющего строительство, выполнившего работы, подлежа- "]
["щие освидетельствованию"]
[]
[]
["а также иные представители лиц, участвующих в освидетельствовании:",null,null,null,null,null,null,null,null,null,null,null,null,null,null,null,null,null,null,null,null,null,null,"нет"]
[]
[]
[]
["(наименование, должность, фамилия, инициалы, реквизиты документа о представительстве)"]
["произвели осмотр работ, выполненных",null,null,null,null,null,null,null,null,null,null,null,null,"ЗАО \"ГидроЭнергоСервис-ремонт\" "]
[]
["(наименование лица, осуществляющего строительство, выполнившего работы)"]
["и составили настоящий акт о нижеследующем:"]
["1. К освидетельствованию предъявлены следующие работы"]
[]
[]
["(наименование скрытых работ)"]
["2. Работы выполнены по проектной документации"]
[]
["(номер, другие реквизиты чертежа, наименование проектной документации,"]
[]
["сведения о лицах, осуществляющих подготовку раздела  проектной документации)"]
["3. При выполнении работ применены"]
["                                                                                            (наименование строительных материалов,"]
[]
[]
["(изделий) со ссылкой на сертификаты или другие документы, подтверждающие качество)"]
["4. Предъявлены документы, подтверждающие соответствие работ предъявляемым к ним"]
["требованиям:"]
[]
["(исполнительные схемы и чертежи, результаты экспертиз, обследований, лабораторных и иных"]
[]
["испытаний выполненных работ, проведенных в процессе строительного контроля.)"]
["5. Даты:     начала работ:",null,null,null,null,null,null,null,null,"«",null,"»      "]
["окончания работ:",null,null,null,null,null,null,null,null,"«",null,"»      "]
[]
["6. Работы выполнены в соответствии с",null,null,null,null,null,null,null,null,null,null,null,null,null,null,"СНиП 2.03.11-85, СНиП 3.04.03-85."]
["                                                                                   (указываются наименование, статьи "]
[{"$f":"R85","v":0}]
["(пункты) технического регламента (норм и правил), иных нормативных правовых актов,"]
[{"$f":"A86","v":0}]
["разделы проектной документации)"]
["7. Разрешается производство последующих работ:"]
[]
["(наименование работ,  конструкций, участков сетей инженерно-технического обеспечения)"]
[]
["Дополнительные сведения",null,null,null,null,null,null,null,null,"нет"]
["."]
["Акт составлен в",null,null,null,null,null,2,null,null,null,"экземплярах."]
[]
["Приложения:"]
[]
[]
[]
["Представитель застройщика или заказчика",null,null,null,null,null,null,null,null,null,null,null,null,null,{"$f":"O53","v":0}]
[{"$f":"A54","v":" "}]
["(должность, фамилия, инициалы, подпись)"]
["Представитель лица, осуществляющего строительство",null,null,null,null,null,null,null,null,null,null,null,null,null,null,null,null,null,{"$f":"S57","v":0}]
[{"$f":"A58","v":0}]
["(должность, фамилия, инициалы, подпись)"]
["Представитель лица, осуществляющего строительство, по вопросам строительного контроля"]
[{"$f":"E62","v":"нет"}]
[{"$f":"A63","v":0}]
["(должность, фамилия, инициалы, подпись)"]
["Представитель лица, осуществляющего подготовку проектной документации",null,null,null,null,null,null,null,null,null,null,null,null,null,null,null,null,null,null,null,null,null,null,null,null,{"$f":"Z65","v":"нет"}]
[{"$f":"A66","v":0}]
["(должность, фамилия, инициалы, подпись)"]
["Представитель лица, осуществляющего строительство, выполнившего работы, подлежа"]
["щие освидетельствованию",null,null,null,null,null,null,null,null,{"$f":"J69","v":0}]
[{"$f":"A70","v":0}]
[{"$f":"A71","v":0}]
[null,null,null,null,null,null,null,null,null,"(должность, фамилия, инициалы, подпись)"]
["Представители иных лиц:",null,null,null,null,null,null,null,null,{"$f":"X72","v":"нет"}]
[null,null,null,null,null,null,null,null,null,"                        (должность, фамилия, инициалы, подпись)"]
[{"$f":"A73","v":0}]
["                                                                  (должность, фамилия, инициалы, подпись)"]
[{"$f":"A74","v":0}]
["(должность, фамилия, инициалы, подпись)"]
[{"$f":"A75","v":0}]
["(должность, фамилия, инициалы, подпись)"]